[Event "GER-chT Youth Countries 2020"]
[Site "Berlin"]
[Date "2020.10.01"]
[Round "3"]
[White "Schubert, Nikita"]
[Black "Deuer, Marius"]
[Result "0-1"]
[ECO "D71"]
[WhiteElo "1946"]
[BlackElo "2161"]
[Annotator "ChessBase"]
[PlyCount "128"]
[EventDate "2020.09.30"]
[EventType "team-tourn"]
[EventRounds "7"]
[EventCountry "GER"]
[SourceTitle "playchess.com"]
[Source "ChessBase"]
[SourceQuality "1"]
[TimeControl "30/5400+30:0"]

1. d4 {[%emt 0:00:00]} Nf6 {[%emt 0:00:00]} 2. c4 {[%emt 0:00:00]} g6 {[%emt 0:00:00]} 3. g3 {[%emt 0:00:11]} c5 {[%emt 0:00:00]} 4. d5 {[%emt 0:07:18]} b5 {[%emt 0:00:00]} 5. cxb5 {[%emt 0:02:47]} a6 {[%emt 0:00:03]} 6. bxa6 {[%emt 0:06:06]} d6 {[%emt 0:00:11]} 7. Bg2 {[%emt 0:01:26]} Bg7 {[%emt 0:00:09]} 8. Nc3 {[%emt 0:00:53]} O-O {[%emt 0:00:07]} 9. Nf3 {[%emt 0:05:55]} Nbd7 {[%emt 0:00:10]} 10. O-O {[%emt 0:00:33]} Nb6 {[%emt 0:00:06]} 11. Re1 {[%emt 0:04:55]} Bxa6 {[%emt 0:00:14]} 12. e4 {[%emt 0:01:48]} Nfd7 {[%emt 0:00:31]} 13. Qc2 {[%emt 0:06:34]} Nc4 {[%emt 0:00:11]} 14. Bf1 {[%emt 0:07:54]} Nce5 {[%emt 0:01:13]} 15. Nxe5 {[%emt 0:00:25]} Nxe5 {[%emt 0:00:07]} 16. Kg2 {[%emt 0:00:27]} Bxf1+ {[%emt 0:00:35]} 17. Rxf1 {[%emt 0:00:24]} Qa5 {[%emt 0:00:07]} 18. Nd1 {[%emt 0:15:24]} Qa6 {[%emt 0:10:00]} 19. Bd2 {[%emt 0:01:25]} Nd3 {[%emt 0:27:46]} 20. Bc3 {[%emt 0:01:15]} Qc4 {[%emt 0:03:32]} 21. f3 {[%emt 0:08:16]} Nb4 {[%emt 0:00:17]} 22. Qd2 {[%emt 0:07:33]} Nxa2 {[%emt 0:19:03]} 23. Bxg7 {[%emt 0:03:12]} Kxg7 {[%emt 0:00:08]} 24. Nc3 {[%emt 0:03:41]} Nb4 {[%emt 0:02:57]} 25. Rfc1 {[%emt 0:01:29]} Rfb8 {[%emt 0:05:20]} 26. Nd1 {[%emt 0:04:13]} Qb5 {[%emt 0:08:29]} 27. Ne3 {[%emt 0:01:46]} Rxa1 {[%emt 0:10:49]} 28. Rxa1 {[%emt 0:00:01]} Qd3 {[%emt 0:00:10]} 29. Rd1 {[%emt 0:03:06]} Qb5 {[%emt 0:02:56]} 30. Qc3+ {[%emt 0:01:29]} f6 {[%emt 0:00:18]} 31. Nc4 {[%emt 1:31:11]} Na2 {[%emt 1:35:31]} 32. Qc2 {[%emt 0:00:11]} Qb3 {[%emt 0:01:20]} 33. Qxb3 {[%emt 0:01:59]} Rxb3 {[%emt 0:00:06]} 34. Ra1 {[%emt 0:00:19]} Rb4 {[%emt 0:00:17]} 35. Rxa2 {[%emt 0:00:54]} Rxc4 {[%emt 0:00:05]} 36. b3 {[%emt 0:00:05]} Rb4 {[%emt 0:00:14]} 37. Ra3 {[%emt 0:00:16]} f5 {[%emt 0:00:07]} 38. exf5 {[%emt 0:02:09]} gxf5 {[%emt 0:00:21]} 39. Kf2 {[%emt 0:00:27]} Kf6 {[%emt 0:00:27]} 40. Ke2 {[%emt 0:00:59]} Rd4 {[%emt 0:02:04]} 41. Ra8 {[%emt 0:00:00]} Rxd5 {[%emt 0:00:00]} 42. Rh8 {[%emt 0:00:00]} Kg7 {[%emt 0:00:00]} 43. Re8 {[%emt 0:00:00]} e5 {[%emt 0:00:00]} 44. Re6 {[%emt 0:00:00]} Rd4 {[%emt 0:00:00]} 45. h4 {[%emt 0:00:00]} e4 {[%emt 0:00:00]} 46. h5 {[%emt 0:00:00]} Kf7 {[%emt 0:00:04]} 47. Rh6 {[%emt 0:00:00]} Kg8 {[%emt 0:03:00]} 48. Rf6 {[%emt 0:00:52]} Rd5 {[%emt 0:00:19]} 49. Re6 {[%emt 0:02:17]} Kf7 {[%emt 0:03:11]} 50. Rh6 {[%emt 0:00:01]} Kg7 {[%emt 0:00:07]} 51. Re6 {[%emt 0:00:04]} Rd4 {[%emt 0:00:10]} 52. Kf2 {[%emt 0:01:33]} Rd2+ {[%emt 0:00:50]} 53. Ke1 {[%emt 0:00:34]} Rd3 {[%emt 0:01:07]} 54. fxe4 fxe4 {[%emt 0:00:27]} 55. Kf2 {[%emt 0:02:13]} d5 {[%emt 0:00:53]} 56. Rc6 {[%emt 0:00:42]} Rc3 {[%emt 0:00:34]} 57. g4 {[%emt 0:00:25]} h6 {[%emt 0:00:48]} 58. Ke2 {[%emt 0:00:27]} d4 {[%emt 0:00:15]} 59. Rg6+ {[%emt 0:00:34]} Kh7 {[%emt 0:00:24]} 60. Rc6 {[%emt 0:00:23]} e3 {[%emt 0:00:21]} 61. Rc8 {[%emt 1:30:33]} Rc2+ {[%emt 1:30:19]} 62. Kd3 {[%emt 0:00:23]} Rd2+ {[%emt 0:00:24]} 63. Kc4 {[%emt 0:00:55]} e2 {[%emt 0:00:09]} 64. Re8 {[%emt 0:00:30]} d3 {[%emt 0:00:05]} 0-1

[Event "GER-chT Youth Countries 2020"]
[Site "Berlin"]
[Date "2020.10.01"]
[Round "3"]
[White "Moenster, Madita"]
[Black "Schulz, Hannah"]
[Result "1-0"]
[ECO "B10"]
[WhiteElo "1918"]
[BlackElo "1589"]
[Annotator "ChessBase"]
[PlyCount "107"]
[EventDate "2020.09.30"]
[EventType "team-tourn"]
[EventRounds "7"]
[EventCountry "GER"]
[SourceTitle "playchess.com"]
[Source "ChessBase"]
[SourceQuality "1"]
[TimeControl "30/5400+30:0"]

1. e4 {[%emt 0:00:00]} c6 {[%emt 0:00:00]} 2. Nc3 {[%emt 0:00:00]} d5 {[%emt 0:00:02]} 3. Nf3 {[%emt 0:00:00]} dxe4 {[%emt 0:00:12]} 4. Nxe4 {[%emt 0:00:07]} Nf6 {[%emt 0:00:33]} 5. Qe2 {[%emt 0:00:18]} Nxe4 {[%emt 0:01:09]} 6. Qxe4 {[%emt 0:00:06]} Nd7 {[%emt 0:00:33]} 7. Bc4 {[%emt 0:00:26]} Nf6 {[%emt 0:00:21]} 8. Ne5 {[%emt 0:01:03]} e6 {[%emt 0:00:54]} 9. Qe2 {[%emt 0:00:14]} Bd6 {[%emt 0:00:43]} 10. d4 {[%emt 0:00:48]} O-O {[%emt 0:01:36]} 11. O-O {[%emt 0:00:18]} Qc7 {[%emt 0:04:07]} 12. Re1 {[%emt 0:04:49]} c5 {[%emt 0:04:42]} 13. dxc5 {[%emt 0:09:32]} Bxc5 {[%emt 0:01:33]} 14. Bd3 {[%emt 0:03:12]} Bd7 {[%emt 0:04:00]} 15. Bg5 {[%emt 0:10:44]} Nd5 {[%emt 0:06:35]} 16. Qe4 {[%emt 0:10:20]} f5 {[%emt 0:02:20]} 17. Qe2 {[%emt 0:01:55]} Rae8 {[%emt 0:02:19]} 18. a3 {[%emt 0:04:20]} Bd4 {[%emt 0:00:33]} 19. c4 {[%emt 0:01:47]} Bxe5 {[%emt 0:01:32]} 20. Qxe5 {[%emt 0:00:35]} Qxe5 {[%emt 0:00:08]} 21. Rxe5 {[%emt 0:00:06]} Nf6 {[%emt 0:01:31]} 22. h3 {[%emt 0:06:19]} h6 {[%emt 0:02:55]} 23. Bd2 {[%emt 0:02:11]} Bc6 {[%emt 0:02:01]} 24. Bb4 {[%emt 0:02:42]} Rf7 {[%emt 0:01:04]} 25. Rae1 {[%emt 0:01:55]} Bd7 {[%emt 0:03:10]} 26. Bc3 {[%emt 0:02:37]} Rc8 {[%emt 0:03:33]} 27. R5e2 {[%emt 0:03:17]} Nh5 {[%emt 0:04:28]} 28. Be5 {[%emt 0:02:31]} g5 {[%emt 0:01:26]} 29. g3 {[%emt 0:07:00]} Ng7 {[%emt 0:05:12]} 30. b4 {[%emt 0:02:29]} b6 {[%emt 0:01:36]} 31. Rd2 {[%emt 1:32:07]} Kf8 {[%emt 1:38:01]} 32. c5 {[%emt 0:02:47]} bxc5 {[%emt 0:01:09]} 33. Bd6+ {[%emt 0:00:21]} Ke8 {[%emt 0:00:23]} 34. Bxc5 {[%emt 0:00:20]} Rc7 {[%emt 0:01:25]} 35. Rc2 {[%emt 0:03:55]} Bc6 {[%emt 0:01:51]} 36. Bd6 {[%emt 0:04:24]} Rc8 {[%emt 0:00:35]} 37. Ba6 {[%emt 0:02:47]} Kd7 {[%emt 0:02:38]} 38. Bxc8+ {[%emt 0:04:35]} Kxd6 {[%emt 0:00:29]} 39. Rec1 {[%emt 0:02:22]} Bd5 {[%emt 0:00:57]} 40. Ba6 {[%emt 0:02:17]} Ne8 {[%emt 0:03:11]} 41. Bc4 {[%emt 0:01:47]} Nf6 {[%emt 0:02:10]} 42. Bxd5 {[%emt 0:00:00]} exd5 {[%emt 0:00:00]} 43. Rc6+ {[%emt 0:00:00]} Ke5 {[%emt 0:00:00]} 44. Rc7 {[%emt 0:00:00]} Rf8 {[%emt 0:00:00]} 45. Rxa7 {[%emt 0:00:00]} d4 {[%emt 0:00:00]} 46. f3 {[%emt 0:00:00]} Nd5 {[%emt 0:00:00]} 47. Kf2 {[%emt 0:00:00]} f4 {[%emt 0:00:00]} 48. g4 {[%emt 0:00:00]} d3 {[%emt 0:00:00]} 49. Ke1 {[%emt 0:00:00]} Kd4 {[%emt 0:00:00]} 50. Kd2 {[%emt 0:00:00]} Re8 {[%emt 0:00:00]} 51. Rd7 {[%emt 0:00:00]} Re2+ {[%emt 0:00:00]} 52. Kd1 {[%emt 0:00:00]} Rh2 {[%emt 0:00:00]} 53. Rc5 {[%emt 0:00:00]} Ke3 {[%emt 0:00:14]} 54. Kc1 {[%emt 0:00:00]} 1-0

[Event "GER-chT Youth Countries 2020"]
[Site "Berlin"]
[Date "2020.10.01"]
[Round "3"]
[White "Chassard, Cedric"]
[Black "Milare, Tyron"]
[Result "1-0"]
[ECO "B51"]
[WhiteElo "1916"]
[BlackElo "2176"]
[Annotator "ChessBase"]
[PlyCount "56"]
[EventDate "2020.09.30"]
[EventType "team-tourn"]
[EventRounds "7"]
[EventCountry "GER"]
[SourceTitle "playchess.com"]
[Source "ChessBase"]
[SourceQuality "1"]
[TimeControl "30/5400+30:0"]

1. e4 {[%emt 0:00:00]} c5 {[%emt 0:00:00]} 2. Nf3 {[%emt 0:00:00]} d6 {[%emt 0:00:00]} 3. Bb5+ {[%emt 0:00:00]} Nd7 {[%emt 0:00:05]} 4. c3 {[%emt 0:00:00]} a6 {[%emt 0:00:21]} 5. Ba4 {[%emt 0:00:00]} b5 {[%emt 0:00:06]} 6. Bc2 {[%emt 0:00:07]} Bb7 {[%emt 0:01:11]} 7. O-O {[%emt 0:00:22]} Ngf6 {[%emt 0:00:47]} 8. Re1 {[%emt 0:00:28]} e5 {[%emt 0:00:08]} 9. d4 {[%emt 0:00:16]} Be7 {[%emt 0:01:03]} 10. d5 {[%emt 0:00:19]} h6 {[%emt 0:00:07]} 11. Nbd2 {[%emt 0:00:34]} g5 {[%emt 0:00:46]} 12. Nf1 {[%emt 0:04:35]} g4 {[%emt 0:01:02]} 13. Nh4 {[%emt 0:01:23]} h5 {[%emt 0:05:08]} 14. Nf5 {[%emt 0:00:29]} Nf8 {[%emt 0:01:58]} 15. a4 {[%emt 0:01:33]} Ng6 {[%emt 0:02:11]} 16. axb5 {[%emt 0:00:37]} axb5 {[%emt 0:00:06]} 17. Rxa8 {[%emt 0:00:19]} Qxa8 {[%emt 0:00:24]} 18. Qe2 {[%emt 0:02:27]} Qa6 {[%emt 0:02:31]} 19. b3 {[%emt 0:01:41]} Bc8 {[%emt 0:08:53]} 20. Bd3 {[%emt 0:06:30]} Bd7 {[%emt 0:03:00]} 21. Bg5 {[%emt 0:02:10]} Kf8 {[%emt 0:07:37]} 22. Nxe7 {[%emt 0:02:38]} Kxe7 {[%emt 0:01:44]} 23. Ng3 {[%emt 0:00:54]} Nf8 {[%emt 0:00:34]} 24. f4 {[%emt 0:04:35]} c4 {[%emt 0:09:43]} 25. bxc4 {[%emt 0:04:59]} Qa7+ {[%emt 0:00:11]} 26. Kh1 {[%emt 0:00:37]} bxc4 {[%emt 0:00:07]} 27. Bxc4 {[%emt 0:01:40]} N8h7 {[%emt 0:01:25]} 28. Bh4 {[%emt 0:02:40]} exf4 {[%emt 0:14:08]} 1-0

[Event "GER-chT Youth Countries 2020"]
[Site "Berlin"]
[Date "2020.10.01"]
[Round "3"]
[White "Dietz, Kristin"]
[Black "Poetsch, Leonore"]
[Result "1-0"]
[ECO "C05"]
[WhiteElo "1913"]
[BlackElo "1984"]
[Annotator "ChessBase"]
[PlyCount "59"]
[EventDate "2020.09.30"]
[EventType "team-tourn"]
[EventRounds "7"]
[EventCountry "GER"]
[SourceTitle "playchess.com"]
[Source "ChessBase"]
[SourceQuality "1"]
[TimeControl "30/5400+30:0"]

1. e4 {[%emt 0:00:00]} e6 {[%emt 0:00:00]} 2. d4 d5 {[%emt 0:00:00]} 3. Nd2 {[%emt 0:00:00]} Nf6 {[%emt 0:00:00]} 4. e5 {[%emt 0:00:00]} Nfd7 5. Bd3 {[%emt 0:00:19]} c5 {[%emt 0:00:00]} 6. c3 {[%emt 0:15:45]} b6 {[%emt 0:01:23]} 7. f4 {[%emt 0:00:57]} Ba6 {[%emt 0:00:49]} 8. Ndf3 {[%emt 0:00:07]} Bxd3 {[%emt 0:00:39]} 9. Qxd3 {[%emt 0:00:45]} Nc6 {[%emt 0:02:08]} 10. Ne2 {[%emt 0:00:36]} cxd4 {[%emt 0:03:16]} 11. cxd4 {[%emt 0:01:00]} Rc8 {[%emt 0:04:07]} 12. O-O {[%emt 0:29:14]} Ne7 {[%emt 0:06:24]} 13. Ng5 {[%emt 0:04:04]} g6 {[%emt 0:03:17]} 14. g4 {[%emt 0:11:59]} h6 {[%emt 0:04:46]} 15. Nf3 {[%emt 0:07:13]} Nb8 {[%emt 0:08:42]} 16. Ng3 {[%emt 0:01:06]} Rg8 {[%emt 0:05:57]} 17. Kh1 {[%emt 0:00:45]} Nbc6 {[%emt 0:06:18]} 18. Bd2 {[%emt 0:03:43]} Qd7 {[%emt 0:10:25]} 19. Nh4 {[%emt 0:03:54]} Bg7 {[%emt 0:00:09]} 20. f5 {[%emt 0:00:05]} gxf5 {[%emt 0:02:07]} 21. gxf5 {[%emt 0:02:51]} f6 {[%emt 0:03:32]} 22. Rae1 {[%emt 0:00:56]} exf5 {[%emt 0:00:54]} 23. exf6 {[%emt 0:00:30]} Bxf6 {[%emt 0:02:31]} 24. Nhxf5 {[%emt 0:02:01]} Bg5 {[%emt 0:04:24]} 25. Nxe7 {[%emt 0:01:06]} Bxe7 {[%emt 0:01:25]} 26. Qh7 {[%emt 0:00:26]} Qg4 {[%emt 0:02:18]} 27. Qf7+ {[%emt 0:00:30]} Kd7 {[%emt 0:01:24]} 28. Qxd5+ {[%emt 0:01:35]} Ke8 {[%emt 0:02:00]} 29. Nf5 {[%emt 0:01:03]} Rc7 30. Nxh6 1-0

[Event "GER-chT Youth Countries 2020"]
[Site "Berlin"]
[Date "2020.10.01"]
[Round "3"]
[White "Weidenhoefer, Max"]
[Black "Kolb, Tobias"]
[Result "0-1"]
[ECO "C54"]
[WhiteElo "1897"]
[BlackElo "2268"]
[Annotator "ChessBase"]
[PlyCount "34"]
[EventDate "2020.09.30"]
[EventType "team-tourn"]
[EventRounds "7"]
[EventCountry "GER"]
[SourceTitle "playchess.com"]
[Source "ChessBase"]
[SourceQuality "1"]
[TimeControl "30/5400+30:0"]

1. e4 e5 2. Nf3 Nc6 3. Bc4 Bc5 4. c3 Nf6 5. d3 {[%emt 0:03:01]} h6 6. Bb3 d6 7. h3 O-O 8. g4 d5 {[%emt 0:10:53]} 9. g5 {[%emt 0:22:44]} hxg5 {[%emt 0:07:20]} 10. exd5 {[%emt 0:02:11]} Nxd5 {[%emt 0:09:58]} 11. Nxg5 {[%emt 0:01:58]} Bf5 {[%emt 0:08:36]} 12. Qf3 {[%emt 0:22:40]} Nf4 {[%emt 0:07:45]} 13. Bxf4 {[%emt 0:02:05]} exf4 {[%emt 0:00:12]} 14. Ne4 {[%emt 0:05:02]} Ne5 {[%emt 0:01:34]} 15. Qg2 {[%emt 0:05:08]} f3 {[%emt 0:03:38]} 16. Qg5 {[%emt 0:01:10]} Nxd3+ {[%emt 0:00:15]} 17. Kf1 {[%emt 0:02:34]} Bxe4 {[%emt 0:00:06]} 0-1

[Event "GER-chT Youth Countries 2020"]
[Site "Berlin"]
[Date "2020.10.01"]
[Round "3"]
[White "Halabi, Ibrahim"]
[Black "Kluehs, Gustaf"]
[Result "1-0"]
[ECO "B33"]
[WhiteElo "1895"]
[BlackElo "1827"]
[Annotator "NA"]
[PlyCount "85"]
[EventDate "2020.09.30"]
[EventType "team-tourn"]
[EventRounds "7"]
[EventCountry "GER"]
[SourceTitle "playchess.com"]
[Source "ChessBase"]
[SourceQuality "1"]
[TimeControl "30/5400+30:0"]

1. e4 {[%emt 0:00:00]} c5 {[%emt 0:00:00]} 2. Nf3 {[%emt 0:00:00]} Nc6 {[%emt 0:00:00]} 3. d4 {[%emt 0:00:00]} cxd4 {[%emt 0:00:00]} 4. Nxd4 {[%emt 0:00:00]} Nf6 {[%emt 0:00:03]} 5. Nc3 e5 {[%emt 0:00:00]} 6. Ndb5 {[%emt 0:00:02]} d6 {[%emt 0:00:00]} 7. Bg5 {[%emt 0:00:09]} a6 {[%emt 0:00:16]} 8. Na3 {[%emt 0:00:05]} b5 9. Nd5 {[%emt 0:00:05]} Be7 {[%emt 0:00:08]} 10. Bxf6 {[%emt 0:00:05]} Bxf6 {[%emt 0:00:06]} 11. c3 {[%emt 0:00:00]} Bg5 {[%emt 0:00:51]} 12. Nc2 {[%emt 0:00:39]} O-O {[%emt 0:03:43]} 13. a4 {[%emt 0:01:02]} bxa4 {[%emt 0:00:06]} 14. Rxa4 {[%emt 0:00:30]} a5 {[%emt 0:00:30]} 15. Bc4 {[%emt 0:00:00]} Rb8 {[%emt 0:01:52]} 16. b3 {[%emt 0:02:24]} Kh8 17. Nce3 {[%emt 0:00:07]} f5 {[%emt 0:13:36]} 18. exf5 Bxe3 {[%emt 0:00:00]} 19. Nxe3 {[%emt 0:00:34]} Ne7 {[%emt 0:03:57]} 20. O-O {[%emt 0:00:30]} Bb7 {[%emt 0:00:30]} 21. Be6 {[%emt 0:00:30]} Bc8 {[%emt 0:00:30]} 22. Nc4 {[%emt 0:00:30]} Bxe6 {[%emt 0:16:15]} 23. fxe6 {[%emt 0:27:20]} Nf5 {[%emt 0:07:01]} 24. Rxa5 {[%emt 0:00:30]} Nh4 {[%emt 0:00:30]} 25. Qxd6 {[%emt 0:19:53]} Qg5 {[%emt 0:03:48]} 26. Ne3 {[%emt 0:07:51]} Rbe8 {[%emt 0:07:26]} 27. Ra7 {[%emt 0:02:29]} Rf3 {[%emt 0:08:57]} 28. Rf7 {[%emt 0:02:55]} Qg6 29. Rxf3 {[%emt 0:00:07]} Nxf3+ {[%emt 0:01:03]} 30. Kh1 {[%emt 0:02:25]} Nh4 {[%emt 0:01:17]} 31. Qb4 {[%emt 1:30:30]} Nf5 {[%emt 1:30:30]} 32. Nxf5 {[%emt 0:01:58]} Qxf5 {[%emt 0:01:53]} 33. e7 {[%emt 0:00:36]} Qe6 {[%emt 0:03:25]} 34. Rd1 {[%emt 0:00:32]} Qg6 {[%emt 0:00:24]} 35. h3 {[%emt 0:03:25]} Qg5 {[%emt 0:01:26]} 36. Rd7 {[%emt 0:00:42]} h5 {[%emt 0:00:32]} 37. Rb7 {[%emt 0:00:43]} Kh7 {[%emt 0:00:57]} 38. Qe4+ {[%emt 0:01:43]} g6 {[%emt 0:01:25]} 39. Qb4 {[%emt 0:03:57]} Qd2 {[%emt 0:01:49]} 40. f3 {[%emt 0:00:10]} Qe1+ {[%emt 0:00:26]} 41. Kh2 {[%emt 0:00:30]} h4 {[%emt 0:02:13]} 42. Qg4 {[%emt 0:00:23]} Kh6 43. Rb6 1-0

[Event "GER-chT Youth Countries 2020"]
[Site "Berlin"]
[Date "2020.10.01"]
[Round "3"]
[White "Rudolph, Eva"]
[Black "Sommer, Justus"]
[Result "1-0"]
[ECO "C44"]
[WhiteElo "1836"]
[BlackElo "1845"]
[Annotator "NA"]
[PlyCount "157"]
[EventDate "2020.09.30"]
[EventType "team-tourn"]
[EventRounds "7"]
[EventCountry "GER"]
[SourceTitle "playchess.com"]
[Source "ChessBase"]
[SourceQuality "1"]
[TimeControl "30/5400+30:0"]

1. e4 {[%emt 0:00:00]} e5 {[%emt 0:00:00]} 2. Nf3 {[%emt 0:00:00]} Nc6 {[%emt 0:00:00]} 3. d4 {[%emt 0:00:00]} exd4 {[%emt 0:00:00]} 4. Nxd4 {[%emt 0:00:01]} Nf6 {[%emt 0:00:04]} 5. Nc3 {[%emt 0:00:10]} Bb4 {[%emt 0:00:11]} 6. Nxc6 {[%emt 0:00:16]} bxc6 {[%emt 0:00:06]} 7. Bd3 {[%emt 0:00:08]} h6 {[%emt 0:00:26]} 8. O-O {[%emt 0:04:52]} O-O {[%emt 0:01:55]} 9. Re1 {[%emt 0:03:41]} d5 {[%emt 0:01:47]} 10. Bd2 {[%emt 0:02:21]} Bg4 {[%emt 0:01:45]} 11. f3 {[%emt 0:02:26]} Bc5+ {[%emt 0:01:00]} 12. Kh1 {[%emt 0:01:02]} Be6 {[%emt 0:00:10]} 13. e5 {[%emt 0:07:29]} Nd7 {[%emt 0:04:01]} 14. f4 {[%emt 0:03:40]} f5 {[%emt 0:02:02]} 15. Qf3 {[%emt 0:21:17]} Qe8 {[%emt 0:06:25]} 16. Ne2 {[%emt 0:03:43]} Bb6 {[%emt 0:04:15]} 17. Be3 {[%emt 0:06:01]} c5 {[%emt 0:03:12]} 18. c3 {[%emt 0:00:44]} Rc8 {[%emt 0:04:02]} 19. Bc2 {[%emt 0:16:23]} c6 {[%emt 0:03:07]} 20. Red1 {[%emt 0:03:30]} Qe7 {[%emt 0:02:49]} 21. Bf2 {[%emt 0:03:02]} g5 {[%emt 0:02:16]} 22. Qh5 {[%emt 0:04:52]} Qg7 {[%emt 0:01:29]} 23. Ng3 {[%emt 0:03:07]} Bd8 {[%emt 0:07:10]} 24. Re1 {[%emt 0:01:35]} Be7 {[%emt 0:02:05]} 25. Rad1 {[%emt 0:01:25]} Rb8 {[%emt 0:01:20]} 26. Rb1 {[%emt 0:01:12]} Nb6 {[%emt 0:05:40]} 27. b3 {[%emt 0:01:00]} Rf7 {[%emt 0:09:10]} 28. Qf3 {[%emt 0:03:06]} g4 {[%emt 0:00:26]} 29. Qe3 {[%emt 0:00:35]} Qg6 {[%emt 0:01:15]} 30. h3 {[%emt 0:01:19]} h5 {[%emt 0:00:36]} 31. hxg4 {[%emt 1:30:10]} hxg4 {[%emt 1:30:28]} 32. Kg1 {[%emt 0:00:52]} Rd8 {[%emt 0:01:11]} 33. Rbc1 {[%emt 0:01:37]} Rh7 {[%emt 0:01:59]} 34. Kf1 {[%emt 0:01:50]} d4 {[%emt 0:05:03]} 35. cxd4 {[%emt 0:00:25]} cxd4 {[%emt 0:00:07]} 36. Qd2 {[%emt 0:00:43]} c5 {[%emt 0:01:56]} 37. Bd3 {[%emt 0:00:28]} Nd5 {[%emt 0:00:37]} 38. Bg1 {[%emt 0:01:56]} Rc8 {[%emt 0:04:54]} 39. Bf2 {[%emt 0:00:49]} Bh4 {[%emt 0:00:23]} 40. Red1 {[%emt 0:01:40]} Bxg3 {[%emt 0:02:21]} 41. Bxg3 {[%emt 0:00:14]} Ne3+ {[%emt 0:00:07]} 42. Kf2 {[%emt 0:00:18]} Nxd1+ 43. Qxd1 {[%emt 0:00:00]} Bd5 {[%emt 0:00:00]} 44. Qc2 {[%emt 0:00:00]} Rf7 {[%emt 0:00:00]} 45. Qe2 {[%emt 0:00:00]} Re7 {[%emt 0:00:00]} 46. b4 {[%emt 0:00:00]} Rec7 {[%emt 0:00:00]} 47. bxc5 {[%emt 0:00:00]} Qe6 {[%emt 0:00:00]} 48. Qb2 {[%emt 0:00:00]} Rxc5 {[%emt 0:00:00]} 49. Rxc5 {[%emt 0:00:00]} Rxc5 {[%emt 0:00:00]} 50. Qxd4 {[%emt 0:00:00]} Ra5 {[%emt 0:00:00]} 51. a4 {[%emt 0:00:00]} Qc6 {[%emt 0:00:00]} 52. Bb5 {[%emt 0:01:28]} Qc2+ {[%emt 0:00:06]} 53. Ke3 {[%emt 0:01:33]} Qxg2 {[%emt 0:01:39]} 54. Be1 {[%emt 0:00:40]} Qg1+ {[%emt 0:01:06]} 55. Bf2 {[%emt 0:00:29]} Qc1+ {[%emt 0:00:54]} 56. Ke2 {[%emt 0:01:15]} Qc2+ {[%emt 0:03:09]} 57. Ke3 {[%emt 0:01:16]} Qb3+ {[%emt 0:08:38]} 58. Kd2 {[%emt 0:00:03]} Qa2+ {[%emt 0:00:55]} 59. Ke3 {[%emt 0:00:01]} Qb3+ {[%emt 0:01:40]} 60. Kd2 {[%emt 0:00:05]} a6 {[%emt 0:00:33]} 61. Bc6 {[%emt 1:32:11]} Qa2+ {[%emt 1:33:27]} 62. Ke3 {[%emt 0:00:20]} Qa3+ {[%emt 0:00:53]} 63. Kd2 {[%emt 0:00:08]} Qb3 {[%emt 0:00:30]} 64. Ke1 {[%emt 0:00:48]} g3 {[%emt 0:00:49]} 65. Bg1 {[%emt 0:00:53]} g2 {[%emt 0:00:32]} 66. e6 {[%emt 0:00:42]} Qb1+ {[%emt 0:00:29]} 67. Kd2 {[%emt 0:00:08]} Qa2+ {[%emt 0:00:45]} 68. Ke1 {[%emt 0:00:15]} Qc4 {[%emt 0:04:19]} 69. Qxc4 {[%emt 0:01:37]} Bxc4 {[%emt 0:00:12]} 70. e7 {[%emt 0:00:19]} Bf7 {[%emt 0:01:10]} 71. Bb6 {[%emt 0:00:38]} Kg7 {[%emt 0:01:08]} 72. Kf2 {[%emt 0:00:28]} Be8 {[%emt 0:00:34]} 73. Bxe8 {[%emt 0:00:39]} Rd5 {[%emt 0:00:05]} 74. Bc6 {[%emt 0:00:26]} Rd2+ {[%emt 0:00:09]} 75. Kg1 {[%emt 0:00:14]} Rd1+ {[%emt 0:00:25]} 76. Kxg2 {[%emt 0:00:02]} Rd2+ {[%emt 0:00:16]} 77. Kf3 {[%emt 0:00:14]} Rd3+ {[%emt 0:00:21]} 78. Ke2 {[%emt 0:00:09]} Rd6 {[%emt 0:00:23]} 79. e8=Q {[%emt 0:00:24]} 1-0

[Event "GER-chT Youth Countries 2020"]
[Site "Berlin"]
[Date "2020.10.01"]
[Round "3"]
[White "Wagner, Margarethe"]
[Black "Kadach, Maria"]
[Result "1-0"]
[ECO "B13"]
[WhiteElo "1804"]
[BlackElo "1539"]
[Annotator "NA"]
[PlyCount "68"]
[EventDate "2020.09.30"]
[EventType "team-tourn"]
[EventRounds "7"]
[EventCountry "GER"]
[SourceTitle "playchess.com"]
[Source "ChessBase"]
[SourceQuality "1"]
[TimeControl "30/5400+30:0"]

1. e4 {[%emt 0:00:00]} c6 {[%emt 0:00:00]} 2. d4 {[%emt 0:00:00]} d5 {[%emt 0:00:00]} 3. exd5 {[%emt 0:00:00]} cxd5 {[%emt 0:00:00]} 4. Bd3 {[%emt 0:00:00]} Nc6 {[%emt 0:00:00]} 5. c3 {[%emt 0:00:00]} Nf6 {[%emt 0:00:22]} 6. Bf4 {[%emt 0:00:13]} Bg4 {[%emt 0:00:17]} 7. Qb3 {[%emt 0:00:45]} Qc8 {[%emt 0:02:36]} 8. Nd2 {[%emt 0:00:14]} e6 {[%emt 0:01:07]} 9. Ngf3 {[%emt 0:00:24]} Be7 {[%emt 0:01:59]} 10. O-O {[%emt 0:01:44]} a6 {[%emt 0:00:31]} 11. a4 {[%emt 0:01:01]} Bh5 {[%emt 0:01:58]} 12. Ne5 {[%emt 0:04:08]} Nd7 {[%emt 0:04:31]} 13. Ndf3 {[%emt 0:07:22]} f6 {[%emt 0:04:05]} 14. Nxd7 {[%emt 0:01:46]} Qxd7 {[%emt 0:00:14]} 15. Be2 {[%emt 0:02:29]} Bg6 {[%emt 0:05:42]} 16. Rfe1 {[%emt 0:02:42]} O-O {[%emt 0:02:33]} 17. Qd1 {[%emt 0:02:46]} Rac8 {[%emt 0:03:56]} 18. Bd3 {[%emt 0:03:38]} Bxd3 {[%emt 0:01:30]} 19. Qxd3 {[%emt 0:00:08]} Rfe8 {[%emt 0:01:58]} 20. Nd2 {[%emt 0:13:47]} Na5 {[%emt 0:07:36]} 21. b3 {[%emt 0:11:49]} Red8 {[%emt 0:26:33]} 22. Rac1 {[%emt 0:03:38]} Bf8 {[%emt 0:02:47]} 23. Qh3 {[%emt 0:03:44]} Re8 {[%emt 0:04:27]} 24. Re3 {[%emt 0:04:30]} b5 {[%emt 0:04:57]} 25. axb5 {[%emt 0:03:18]} axb5 {[%emt 0:00:16]} 26. Ra1 {[%emt 0:03:25]} Ra8 {[%emt 0:03:07]} 27. Ree1 {[%emt 0:06:05]} b4 {[%emt 0:07:22]} 28. Ra4 {[%emt 0:05:26]} bxc3 {[%emt 0:02:26]} 29. Qxc3 {[%emt 0:00:09]} Nc6 {[%emt 0:02:17]} 30. Rc1 {[%emt 0:06:32]} Rxa4 {[%emt 0:04:37]} 31. bxa4 {[%emt 1:30:14]} Nb4 {[%emt 1:31:33]} 32. Qb3 {[%emt 0:02:26]} Ra8 {[%emt 0:00:13]} 33. Ra1 {[%emt 0:01:51]} Qc6 {[%emt 0:01:30]} 34. Nf3 {[%emt 0:01:27]} Qc2 {[%emt 0:03:11]} 1-0